bitfinex/quotes_BTCUSD_20250110
["timestamp","ask_amount","ask_price","bid_price","bid_amount"]
[1736467773095,8.52e-05,92796.0,92795.0,0.365528]
[1736467773347,8.52e-05,92796.0,92795.0,1.47665702]
[1736467774844,8.52e-05,92796.0,92795.0,1.467657]
[1736467775048,8.52e-05,92796.0,92795.0,1.13219724]
[1736467775248,8.52e-05,92796.0,92795.0,0.98719724]
[1736467775451,8.52e-05,92796.0,92795.0,0.93859724]
[1736467776105,0.0010852,92796.0,92795.0,0.94759724]
[1736467776924,0.0010852,92796.0,92795.0,0.94259724]
[1736467777371,0.0020852,92796.0,92795.0,0.86699724]
[1736467777779,0.0010852,92796.0,92795.0,0.86199724]
[1736467778127,0.0020852,92796.0,92795.0,0.86699724]
[1736467778341,0.0010852,92796.0,92795.0,0.85799724]
[1736467778548,0.0010852,92796.0,92795.0,0.85299724]
[1736467778753,0.0010852,92796.0,92795.0,0.32009724]
[1736467778963,0.0010852,92796.0,92795.0,0.32509724]
[1736467779559,8.52e-05,92796.0,92795.0,0.31609724]
[1736467779764,0.0010852,92796.0,92795.0,0.31609722]
[1736467780306,0.0010852,92796.0,92795.0,0.31109722]
[1736467780523,0.0010852,92796.0,92795.0,0.0132695]
[1736467781142,0.0010852,92796.0,92795.0,0.0092695]
[1736467781344,0.0010852,92796.0,92795.0,0.0132695]
[1736467781551,8.52e-05,92796.0,92795.0,0.0042695]
[1736467781705,8.52e-05,92796.0,92795.0,0.0002695]
[1736467781912,8.52e-05,92796.0,92795.0,0.0012695]
[1736467783283,0.1125687,92810.0,92795.0,0.0012695]
[1736467783487,0.1500852,92815.0,92795.0,0.0012695]
[1736467783712,0.1500852,92815.0,92795.0,0.04206698]
[1736467784145,0.215498,92809.0,92795.0,0.04206698]
[1736467784325,0.001,92796.0,92795.0,0.04206698]
[1736467784552,0.001,92796.0,92795.0,0.0002695]
[1736467784781,0.001,92796.0,92789.0,0.20680948]
[1736467784987,0.215507,92805.0,92795.0,0.001]
[1736467785189,0.21565476,92805.0,92789.0,0.20680948]
[1736467785789,0.215517,92800.0,92795.0,0.001]
[1736467785992,0.34986651,92800.0,92795.0,0.001]
[1736467786196,0.215507,92804.0,92795.0,0.001]
[1736467786396,0.215513,92802.0,92780.0,0.431125]
[1736467786573,0.215519,92799.0,92789.0,0.001]
[1736467786979,0.21553,92795.0,92789.0,0.001]
[1736467787208,0.21553,92795.0,92780.0,0.215562]
[1736467788319,0.13434951,92790.0,92789.0,0.001]
[1736467788568,0.21553,92795.0,92789.0,0.001]
[1736467789000,0.215535,92792.0,92789.0,0.001]
[1736467789526,0.215535,92792.0,92789.0,0.006]
[1736467789800,0.215553,92785.0,92761.0,0.215607]
[1736467789996,0.215556,92783.0,92770.0,0.215586]
[1736467790314,0.215553,92785.0,92770.0,0.215586]
[1736467790315,0.00107783,92782.0,92770.0,0.215586]
[1736467790518,0.00107783,92784.0,92770.0,0.215586]
[1736467790875,0.00107783,92784.0,92780.0,0.001]
[1736467791474,0.00107783,92784.0,92770.0,0.215586]
[1736467791675,0.00207783,92784.0,92770.0,0.215586]
[1736467791883,0.003,92784.0,92771.0,0.215584]
[1736467792160,0.003,92784.0,92771.0,0.431168]
[1736467792337,0.003,92784.0,92762.0,0.10429976]
[1736467792338,0.003,92784.0,92772.0,0.00107783]
[1736467792550,0.005,92784.0,92776.0,0.215572]
[1736467792752,0.005,92784.0,92762.0,0.10429976]
[1736467793099,0.01904273,92784.0,92763.0,0.00107778]
[1736467793324,0.01404273,92784.0,92770.0,0.215585]
[1736467793521,0.01504273,92784.0,92770.0,0.215585]
[1736467793837,0.01504273,92784.0,92764.0,0.10429976]
[1736467794070,0.01404273,92784.0,92774.0,0.215576]
[1736467794285,0.01504273,92784.0,92774.0,0.215576]
[1736467794486,0.001,92784.0,92771.0,0.215583]
[1736467794764,0.215556,92783.0,92765.0,0.20659798]
[1736467794937,0.00107783,92782.0,92765.0,0.20659798]
[1736467795152,0.00107783,92782.0,92769.0,0.215588]
[1736467795373,0.215561,92781.0,92765.0,0.20659798]
[1736467795621,0.13542734,92780.0,92765.0,0.20659798]
[1736467796656,0.215566,92779.0,92762.0,0.215603]
[1736467796893,0.08047783,92778.0,92762.0,0.215603]
[1736467797098,0.08047783,92778.0,92762.0,0.431207]
[1736467797479,0.13434951,92772.0,92753.0,0.215624]
[1736467797677,0.21666183,92771.0,92757.0,0.215615]
[1736467797896,0.18394951,92772.0,92753.0,0.215624]
[1736467798093,0.0496,92772.0,92761.0,0.215606]
[1736467798717,0.00107783,92771.0,92753.0,0.218624]
[1736467798895,0.13434951,92770.0,92761.0,0.00014763]
[1736467799298,0.00107783,92771.0,92761.0,0.00314763]
[1736467799742,0.215586,92770.0,92758.0,0.20676061]
[1736467799946,0.00414768,92771.0,92758.0,0.20676061]
[1736467800143,0.00522551,92771.0,92758.0,0.20676061]
[1736467800439,0.34993751,92770.0,92753.0,0.215624]
[1736467800693,0.00107783,92769.0,92761.0,0.001]
[1736467801092,0.431183,92768.0,92749.0,0.215635]
[1736467801231,0.215596,92766.0,92749.0,0.43127]
[1736467801616,0.215596,92766.0,92749.0,0.215635]
[1736467801617,0.2156,92764.0,92749.0,0.215635]
[1736467801764,0.2156,92764.0,92746.0,0.215641]
[1736467801765,0.292414,92758.0,92742.0,0.21565]
[1736467801926,0.00096638,92757.0,92737.0,0.0001704]
[1736467802134,0.00096638,92757.0,92744.0,0.215645]
[1736467803185,0.0768,92758.0,92738.0,0.10429976]
[1736467803186,0.07776638,92758.0,92748.0,0.215636]
[1736467803552,0.0768,92758.0,92748.0,0.215636]
[1736467804751,0.00096638,92757.0,92748.0,0.001]
[1736467805052,0.00096638,92757.0,92748.0,0.003]
[1736467805455,0.215619,92756.0,92743.0,0.215648]
[1736467805634,0.0768,92758.0,92743.0,0.431297]
[1736467805986,0.0768,92758.0,92739.0,0.215658]
[1736467805987,0.13434951,92753.0,92739.0,0.215658]
[1736467806155,0.215624,92754.0,92739.0,0.431316]
[1736467806361,0.00096638,92753.0,92739.0,0.431316]
[1736467806584,0.00096638,92755.0,92739.0,0.431316]
[1736467807260,0.00096638,92755.0,92739.0,0.215658]
[1736467807261,0.215624,92754.0,92739.0,0.215658]
[1736467807364,0.13434951,92750.0,92737.0,0.0001704]
[1736467807571,0.13434951,92750.0,92738.0,0.215661]
[1736467808649,0.13534951,92750.0,92738.0,0.215661]
[1736467808842,0.13434951,92750.0,92738.0,0.215661]
[1736467809492,0.215644,92746.0,92737.0,0.0001704]
[1736467809670,0.215644,92746.0,92729.0,0.20753278]
[1736467810019,0.215644,92746.0,92733.0,0.215672]
[1736467810445,0.13534951,92750.0,92734.0,0.21567]
[1736467810653,0.001,92750.0,92741.0,0.215653]
[1736467811081,0.03238634,92754.0,92741.0,0.215653]
[1736467811291,0.15,92757.0,92741.0,0.215653]
[1736467811486,0.15,92755.0,92741.0,0.215653]
[1736467811703,0.14973918,92755.0,92741.0,0.215653]
[1736467812128,0.1,92777.0,92741.0,0.215653]
[1736467812129,0.001,92750.0,92742.0,0.10537797]
[1736467812347,0.03271224,92771.0,92742.0,0.10537774]
[1736467812652,0.00014768,92771.0,92764.0,0.2156]
[1736467812839,0.00014768,92771.0,92765.0,0.00107786]
[1736467813047,0.00014768,92771.0,92768.0,0.431182]
[1736467813260,0.00014768,92771.0,92770.0,0.215586]
[1736467814694,0.00014768,92771.0,92770.0,0.20658598]
[1736467814905,0.00114768,92771.0,92770.0,0.20658598]
[1736467815104,0.00114768,92771.0,92770.0,0.20758598]
[1736467815553,0.00114768,92771.0,92770.0,0.20658598]
[1736467815752,0.00014768,92771.0,92770.0,0.20658598]
[1736467815955,0.00014768,92771.0,92770.0,0.20858598]
[1736467816554,0.00014768,92771.0,92770.0,0.20758598]
[1736467817138,0.00014768,92771.0,92770.0,0.20658598]
[1736467817776,0.00014768,92771.0,92770.0,0.20858598]
[1736467818194,0.00014768,92771.0,92770.0,0.21358598]
[1736467819675,0.00014768,92771.0,92770.0,0.20458596]
[1736467820699,0.00014768,92771.0,92770.0,0.20258596]
[1736467821100,0.00014768,92771.0,92770.0,0.19858596]
[1736467821327,0.00014768,92771.0,92770.0,0.20058596]
[1736467821497,0.00014768,92771.0,92770.0,0.19958596]
[1736467821913,0.00014768,92771.0,92770.0,0.20166374]
[1736467822188,0.00014768,92771.0,92770.0,0.44337139]
[1736467823054,0.00014768,92771.0,92770.0,0.38008572]
[1736467824306,0.00014768,92771.0,92770.0,0.37708572]
[1736467824487,0.00014768,92771.0,92770.0,0.37908572]
[1736467824683,0.00014768,92771.0,92770.0,0.3710857]
[1736467825509,0.00014768,92771.0,92770.0,0.5210857]
[1736467825715,0.00014768,92771.0,92770.0,0.62538546]
[1736467826143,0.00014768,92771.0,92770.0,0.5210857]
[1736467826379,0.00014768,92771.0,92770.0,0.5200857]
[1736467827839,0.00014768,92771.0,92770.0,0.5180857]
[1736467828142,0.00014768,92771.0,92770.0,0.5210857]
[1736467828347,0.00014768,92771.0,92770.0,0.5220857]
[1736467828571,0.00014768,92771.0,92770.0,0.5190857]
[1736467828770,0.00114768,92771.0,92770.0,0.5270857]
[1736467829078,0.00114768,92771.0,92770.0,0.5260857]
[1736467829214,0.00114768,92771.0,92770.0,0.5290857]
[1736467829632,0.00114768,92771.0,92770.0,0.52008568]
[1736467829819,0.00114768,92771.0,92770.0,1.28928544]
[1736467830032,4.426e-05,92814.0,92812.0,0.215488]
[1736467830261,4.426e-05,92814.0,92813.0,0.00107731]
[1736467830463,0.00019205,92814.0,92813.0,0.00107731]
[1736467830665,0.00019205,92814.0,92813.0,0.10537707]
[1736467831554,0.00419205,92814.0,92813.0,0.10537707]
[1736467831757,0.00019205,92814.0,92813.0,0.10537707]
[1736467831971,0.00219205,92814.0,92813.0,0.10537707]
[1736467832287,0.00019205,92814.0,92813.0,0.10737707]
[1736467833554,0.00019205,92814.0,92813.0,0.00307731]
[1736467833806,0.00019205,92814.0,92813.0,0.002]
[1736467834179,0.00019205,92814.0,92812.0,0.215488]
[1736467834558,0.00019205,92814.0,92813.0,0.001]
[1736467834767,0.00019205,92814.0,92812.0,0.20748798]
[1736467835356,0.00019205,92814.0,92813.0,0.18557701]
[1736467835799,0.00019205,92814.0,92813.0,0.18657701]
[1736467835981,0.00019205,92814.0,92813.0,0.23327701]
[1736467836180,0.00019205,92814.0,92813.0,0.23219976]
[1736467836872,0.00019205,92814.0,92813.0,0.33219976]
[1736467837066,0.00019205,92814.0,92813.0,0.70949952]
[1736467837652,8.52e-05,92828.0,92827.0,0.292154]
[1736467837846,8.52e-05,92828.0,92827.0,0.40445376]
[1736467838718,8.52e-05,92828.0,92827.0,0.55445376]
[1736467838958,8.52e-05,92828.0,92827.0,0.55945376]
[1736467839159,8.52e-05,92828.0,92827.0,0.66575352]
[1736467839326,8.52e-05,92828.0,92827.0,0.66075352]
[1736467839693,8.52e-05,92828.0,92827.0,0.66375352]
[1736467839887,8.52e-05,92828.0,92827.0,1.42565352]
[1736467840314,8.52e-05,92828.0,92827.0,1.40265352]
[1736467840429,8.52e-05,92828.0,92827.0,1.39465352]
[1736467840641,8.52e-05,92828.0,92827.0,1.42565352]
[1736467841313,8.52e-05,92828.0,92827.0,1.43065352]
[1736467841517,8.52e-05,92828.0,92827.0,1.42365352]
[1736467841843,8.52e-05,92828.0,92827.0,1.466758]
[1736467842044,8.52e-05,92834.0,92833.0,0.3267]
[1736467842194,8.52e-05,92834.0,92833.0,0.84131805]
[1736467842390,8.52e-05,92834.0,92833.0,0.62631805]
[1736467842797,8.52e-05,92834.0,92833.0,0.61831805]
[1736467843005,8.52e-05,92834.0,92833.0,0.62631805]
[1736467843410,8.52e-05,92834.0,92833.0,0.73131805]
[1736467843613,8.52e-05,92834.0,92833.0,0.63131805]
[1736467843984,8.52e-05,92834.0,92833.0,0.55143976]
[1736467844190,8.52e-05,92834.0,92833.0,0.55943976]
[1736467844400,8.52e-05,92834.0,92833.0,0.40143976]
[1736467844605,8.52e-05,92834.0,92833.0,0.33373976]
[1736467844812,8.52e-05,92834.0,92833.0,0.31973976]
[1736467845259,8.52e-05,92834.0,92833.0,0.33173976]
[1736467845456,8.52e-05,92834.0,92833.0,0.32273976]
[1736467845662,8.52e-05,92834.0,92833.0,0.31973976]
[1736467845871,8.52e-05,92834.0,92833.0,0.32673976]
[1736467846073,8.52e-05,92834.0,92833.0,0.39318906]
[1736467846291,8.52e-05,92834.0,92833.0,0.39118906]
[1736467846502,8.52e-05,92834.0,92833.0,0.31973976]
[1736467846844,8.52e-05,92834.0,92833.0,0.47373976]
[1736467847048,8.52e-05,92834.0,92833.0,0.70073976]
[1736467847629,8.52e-05,92834.0,92833.0,1.24263976]
[1736467847963,8.52e-05,92834.0,92833.0,1.44793952]
[1736467848226,8.52e-05,92834.0,92833.0,1.46993952]
[1736467848467,8.52e-05,92834.0,92833.0,1.2869432]
[1736467848721,8.52e-05,92834.0,92833.0,1.2909432]
[1736467849002,8.52e-05,92834.0,92833.0,1.18264344]
[1736467849220,8.52e-05,92834.0,92833.0,0.87063976]
[1736467849452,8.52e-05,92834.0,92833.0,0.88263976]
[1736467849678,8.52e-05,92834.0,92833.0,0.87363976]
[1736467849912,8.52e-05,92834.0,92833.0,0.88263976]
[1736467850186,8.52e-05,92834.0,92833.0,0.87463976]
[1736467850367,8.52e-05,92834.0,92833.0,0.96297209]
[1736467850820,8.52e-05,92834.0,92833.0,0.95897209]
[1736467851083,8.52e-05,92834.0,92833.0,0.33273976]
[1736467851329,8.52e-05,92834.0,92833.0,0.32373976]
[1736467851587,8.52e-05,92834.0,92833.0,0.32873976]
[1736467851794,8.52e-05,92834.0,92833.0,0.32373976]
[1736467852173,8.52e-05,92834.0,92833.0,0.32873976]
[1736467852384,8.52e-05,92834.0,92833.0,0.31973976]
[1736467852585,8.52e-05,92834.0,92833.0,0.32273976]
[1736467852760,8.52e-05,92834.0,92833.0,0.33073976]
[1736467853168,8.52e-05,92834.0,92833.0,0.40690454]
[1736467856828,8.52e-05,92834.0,92833.0,0.33073976]
[1736467857239,8.52e-05,92834.0,92833.0,0.56353976]
[1736467861808,8.52e-05,92834.0,92833.0,0.56053976]
[1736467862054,8.52e-05,92834.0,92833.0,0.55253976]
[1736467862250,8.52e-05,92834.0,92833.0,0.56353976]
[1736467862460,8.52e-05,92834.0,92833.0,0.66783952]
[1736467862633,8.52e-05,92834.0,92833.0,0.65983952]
[1736467863180,8.52e-05,92834.0,92833.0,0.66883952]
[1736467863698,8.52e-05,92834.0,92833.0,0.56153976]
[1736467863908,8.52e-05,92834.0,92833.0,0.56553976]
[1736467864107,8.52e-05,92834.0,92833.0,0.33273976]
[1736467864580,8.52e-05,92834.0,92833.0,0.45843976]
[1736467864774,8.52e-05,92834.0,92833.0,0.60843976]
[1736467864907,8.52e-05,92834.0,92833.0,0.71273952]
[1736467865109,0.0757702,92866.0,92833.0,0.71273952]
[1736467865110,0.20082933,92880.0,92836.0,0.15]
[1736467865318,0.00014774,92842.0,92838.0,0.15]
[1736467865526,0.00014774,92842.0,92839.0,0.32080264]
[1736467865735,0.00014774,92842.0,92839.0,0.31972576]
[1736467865931,0.00014774,92842.0,92841.0,0.215422]
[1736467866138,0.00014774,92842.0,92841.0,0.31972176]
[1736467866550,0.00014774,92842.0,92841.0,0.215422]
[1736467867561,0.00014774,92842.0,92841.0,0.31972176]
[1736467867776,0.00014774,92842.0,92841.0,0.32172176]
[1736467868122,0.00014774,92842.0,92841.0,0.39778034]
[1736467868307,0.00014774,92842.0,92841.0,0.40578034]
[1736467869693,0.00014774,92842.0,92841.0,0.39678032]
[1736467871103,0.00014774,92842.0,92841.0,0.47928032]
[1736467871963,0.00014774,92842.0,92841.0,0.63732032]
[1736467872175,0.0472,92873.0,92868.0,0.215357]
[1736467872383,0.00057745,92872.0,92868.0,0.215357]
[1736467873223,0.00057745,92872.0,92844.0,0.15]
[1736467873425,0.00357745,92872.0,92867.0,0.21536]
[1736467874303,0.00057745,92872.0,92867.0,0.21536]
[1736467874491,0.00357745,92872.0,92867.0,0.21536]
[1736467874703,0.00557745,92872.0,92867.0,0.20635998]
[1736467875402,0.00357745,92872.0,92867.0,0.20635998]
[1736467875809,0.00557745,92872.0,92867.0,0.20635998]
[1736467876019,0.00257745,92872.0,92867.0,0.20635998]
[1736467876327,0.00557745,92872.0,92868.0,0.0421728]
[1736467876628,0.00557745,92872.0,92867.0,0.20635998]
[1736467876949,0.00257745,92872.0,92867.0,0.20635998]
[1736467877145,0.00457745,92872.0,92867.0,0.20635998]
[1736467877566,0.00057745,92872.0,92867.0,0.20635998]
[1736467877800,0.00057745,92872.0,92863.0,0.215368]
[1736467877972,0.00257745,92872.0,92863.0,0.215368]
[1736467878380,0.00257745,92872.0,92868.0,0.215357]
[1736467878958,0.00257745,92872.0,92868.0,0.430716]
[1736467879381,0.00057745,92872.0,92868.0,0.430716]
[1736467879759,0.00257745,92872.0,92868.0,0.42171598]
[1736467880186,0.00057745,92872.0,92868.0,0.42171598]
[1736467881220,0.00057745,92872.0,92868.0,0.42271598]
[1736467882319,0.00057745,92872.0,92868.0,0.48652438]
[1736467882581,0.00057745,92872.0,92868.0,0.37546514]
[1736467882783,0.00057745,92872.0,92870.0,0.215354]
[1736467882993,0.00057745,92872.0,92871.0,0.10537635]
[1736467884370,0.00057745,92872.0,92871.0,0.10637635]
[1736467884776,0.00057745,92872.0,92871.0,0.09737633]
[1736467884893,0.00057745,92872.0,92871.0,0.0984529]
[1736467885297,0.00057745,92872.0,92871.0,0.1044529]
[1736467886245,0.00057745,92872.0,92871.0,0.007]
[1736467886408,0.00181212,92872.0,92871.0,0.007]
[1736467887029,0.00181212,92872.0,92871.0,0.006]
[1736467887228,0.00181212,92872.0,92867.0,0.215359]
[1736467887433,0.04737745,92872.0,92844.0,0.215414]
[1736467887642,0.215399,92851.0,92827.0,0.215454]
[1736467887842,0.00107659,92850.0,92828.0,0.10429976]
[1736467888046,0.00124427,92850.0,92828.0,0.10537682]
[1736467888249,0.00124427,92850.0,92841.0,0.215419]
[1736467888511,0.00124427,92850.0,92839.0,0.215426]
[1736467888707,0.215403,92849.0,92835.0,0.215434]
[1736467888887,0.00107659,92848.0,92839.0,0.215425]
[1736467889087,0.00232086,92848.0,92839.0,0.215425]
[1736467889832,0.00232086,92848.0,92839.0,0.20642498]
[1736467890036,0.00324427,92848.0,92843.0,0.215415]
[1736467890247,0.002,92848.0,92844.0,0.10537678]
[1736467890439,0.002,92848.0,92845.0,0.215412]
[1736467890652,0.002,92848.0,92846.0,0.10537662]
[1736467890790,0.00107659,92865.0,92846.0,0.10537662]
[1736467890999,0.00107659,92864.0,92836.0,0.00107686]
[1736467891238,0.00107659,92864.0,92837.0,0.10429976]
[1736467891442,0.13388062,92860.0,92848.0,0.215405]
[1736467891641,0.21645759,92859.0,92848.0,0.215405]
[1736467891850,0.215391,92855.0,92841.0,0.21542]
[1736467892049,0.215394,92853.0,92841.0,0.21542]
[1736467892383,0.002,92848.0,92841.0,0.21542]
[1736467892790,0.215389,92855.0,92841.0,0.21542]
[1736467892992,0.00107659,92854.0,92841.0,0.21542]
[1736467893574,0.215394,92853.0,92841.0,0.21542]
[1736467893947,0.00107659,92852.0,92841.0,0.430841]
[1736467894138,0.00107659,92852.0,92846.0,0.215408]
[1736467894372,0.002,92855.0,92846.0,0.215408]
[1736467894816,0.002,92855.0,92846.0,0.20640798]
[1736467895190,0.15,92863.0,92850.0,0.2154]
[1736467895514,0.215373,92862.0,92850.0,0.2154]
[1736467895713,0.001,92853.0,92850.0,0.2154]
[1736467896082,0.215373,92862.0,92830.0,0.430894]
[1736467896083,0.21538,92859.0,92830.0,0.430894]
[1736467896307,0.00107659,92858.0,92831.0,0.10537674]
[1736467896566,0.00107659,92858.0,92840.0,0.215423]
[1736467896766,0.215387,92856.0,92840.0,0.215423]
[1736467897084,0.13388062,92850.0,92840.0,0.215423]
[1736467897393,0.00107659,92849.0,92840.0,0.215423]
[1736467898743,0.0827,92851.0,92840.0,0.215423]
[1736467899207,0.215401,92850.0,92840.0,0.215423]
[1736467899664,0.34928162,92850.0,92840.0,0.215423]
[1736467899880,0.0484,92848.0,92833.0,0.215438]
[1736467900089,0.215421,92842.0,92829.0,0.2156182]
[1736467900925,0.00107659,92841.0,92829.0,0.0001702]
[1736467901128,0.215424,92840.0,92830.0,0.215447]
[1736467901365,0.00107659,92839.0,92830.0,0.215447]
[1736467901917,0.00107659,92839.0,92830.0,0.430894]
[1736467902122,0.13388062,92843.0,92830.0,0.430894]
[1736467902123,0.00107659,92842.0,92830.0,0.430894]
[1736467902323,0.00307659,92842.0,92830.0,0.430894]
[1736467902833,0.00107659,92842.0,92830.0,0.215447]
[1736467903036,0.215422,92841.0,92830.0,0.215447]
[1736467903239,0.002,92839.0,92830.0,0.430894]
[1736467903431,0.002,92839.0,92835.0,0.215435]
[1736467903634,0.13388062,92843.0,92831.0,0.215445]
[1736467903770,0.13495721,92843.0,92831.0,0.215445]
[1736467903971,0.13495721,92843.0,92829.0,0.00031794]
[1736467903972,0.003,92842.0,92829.0,0.00031794]
[1736467904176,0.00407659,92842.0,92839.0,0.215425]
[1736467904489,0.003,92842.0,92839.0,0.215425]
[1736467904745,0.003,92842.0,92839.0,0.20642498]
[1736467905177,0.02820373,92851.0,92843.0,0.430832]
[1736467905598,0.15,92855.0,92843.0,0.430832]
[1736467905816,0.02724118,92855.0,92848.0,0.215404]
[1736467906068,0.338458,92869.0,92856.0,0.215386]
[1736467906284,0.13388062,92870.0,92836.0,0.0823]
[1736467906285,0.002,92842.0,92836.0,0.0823]
[1736467906488,0.002,92842.0,92837.0,0.12941866]
[1736467906934,0.09669007,92872.0,92839.0,0.215426]
[1736467907153,0.003,92855.0,92854.0,0.296991]
[1736467907364,0.003,92855.0,92854.0,0.44789076]
[1736467908385,8.51e-05,92872.0,92871.0,0.215352]
[1736467909664,0.00057745,92872.0,92871.0,0.20635198]
[1736467911310,0.00057745,92872.0,92871.0,0.28255198]
[1736467911839,0.00057745,92872.0,92871.0,0.28755198]
[1736467912243,0.00057745,92872.0,92871.0,0.28855198]
[1736467912626,0.00057745,92872.0,92871.0,0.51377894]
[1736467913048,8.51e-05,92887.0,92886.0,0.365317]
[1736467913237,0.00023274,92887.0,92886.0,0.59481676]
[1736467913459,0.00013049,92895.0,92893.0,0.215301]
[1736467913670,0.00013049,92895.0,92893.0,0.59480076]
[1736467914013,0.00013049,92895.0,92893.0,0.79661934]
[1736467914314,0.00013049,92895.0,92893.0,0.69661934]
[1736467914519,0.00013049,92895.0,92893.0,0.80469934]
[1736467914721,0.0043076,92916.0,92907.0,0.215268]
[1736467914924,0.00445519,92916.0,92915.0,0.21525]
[1736467915152,0.00445519,92916.0,92915.0,0.24731258]
[1736467915370,0.00436137,92916.0,92915.0,0.21525]
[1736467916692,0.215222,92927.0,92909.0,0.215264]
[1736467916944,0.215222,92927.0,92914.0,0.215251]
[1736467917149,0.00322072,92926.0,92914.0,0.215251]
[1736467917544,0.215226,92926.0,92909.0,0.215264]
[1736467917746,0.24317069,92931.0,92907.0,0.215268]
[1736467917747,0.215235,92922.0,92907.0,0.215267]
[1736467917946,0.00322074,92925.0,92915.0,0.002]
[1736467918154,0.15,92928.0,92907.0,0.215267]
[1736467918369,0.215222,92927.0,92908.0,0.215266]
[1736467918575,0.21844276,92927.0,92908.0,0.215266]
[1736467918774,0.21844276,92927.0,92908.0,0.430532]
[1736467919723,0.215225,92926.0,92908.0,0.42153198]
[1736467920021,0.15,92924.0,92907.0,0.215267]
[1736467920205,0.25429976,92924.0,92908.0,0.0430547]
[1736467920437,0.215236,92921.0,92907.0,0.215266]
[1736467920774,0.00322072,92920.0,92907.0,0.215266]
[1736467920971,0.215241,92919.0,92903.0,0.215278]
[1736467921225,0.21527,92907.0,92898.0,0.00014759]
[1736467921429,0.215283,92901.0,92898.0,0.00014759]
[1736467921841,0.00320818,92900.0,92898.0,0.00014759]
[1736467922185,0.215273,92905.0,92898.0,0.00014759]
[1736467922410,0.00319279,92899.0,92898.0,0.00014759]
[1736467922574,0.53484576,92905.0,92898.0,0.00014759]
[1736467922789,0.00319279,92899.0,92898.0,0.00114759]
[1736467923026,0.31957276,92905.0,92898.0,0.00114759]
[1736467923231,0.00319281,92899.0,92898.0,0.00114759]
[1736467923442,0.21523,92924.0,92908.0,0.215264]
[1736467923629,0.21523,92924.0,92909.0,0.215262]
[1736467923630,0.215234,92922.0,92909.0,0.215262]
[1736467923924,0.430468,92922.0,92905.0,0.215271]
[1736467924685,0.430468,92922.0,92905.0,0.42154398]
[1736467924891,0.437468,92922.0,92909.0,0.001]
[1736467925092,0.222234,92922.0,92909.0,0.001]
[1736467925293,0.00359019,92921.0,92909.0,0.215262]
[1736467925714,0.00359019,92921.0,92913.0,0.215253]
[1736467926117,0.00359019,92921.0,92917.0,0.215243]
[1736467926316,0.003,92922.0,92917.0,0.430488]
[1736467926490,0.003,92922.0,92919.0,0.215241]
[1736467926712,8.51e-05,92932.0,92924.0,0.215229]
[1736467927712,8.51e-05,92932.0,92929.0,0.215217]
[1736467927876,0.0050851,92932.0,92924.0,0.216229]
[1736467928079,8.51e-05,92932.0,92919.0,0.215241]
[1736467928329,0.20072723,92930.0,92915.0,0.215248]
[1736467928526,0.20072723,92930.0,92919.0,0.215239]
[1736467928979,0.215218,92929.0,92915.0,0.215248]
[1736467929189,0.215238,92921.0,92907.0,0.215267]
[1736467929335,0.25429976,92928.0,92912.0,0.215256]
[1736467929530,0.215238,92921.0,92908.0,0.215264]
[1736467929759,0.215238,92920.0,92906.0,0.21527]
[1736467930084,0.215252,92915.0,92901.0,0.215281]
[1736467930372,0.20987285,92915.0,92901.0,0.430562]
[1736467930546,0.21535603,92919.0,92899.0,0.00014759]
[1736467930873,0.215253,92914.0,92899.0,0.00014759]
[1736467931294,0.215245,92917.0,92901.0,0.215282]
[1736467931488,0.005,92915.0,92899.0,0.00014759]
[1736467931693,0.215252,92914.0,92900.0,0.215285]
[1736467932049,0.220252,92914.0,92900.0,0.215285]
[1736467932667,0.220252,92914.0,92899.0,0.00014759]
[1736467932864,0.220252,92914.0,92900.0,0.215285]
[1736467933300,0.223252,92914.0,92900.0,0.215285]
[1736467933681,0.215263,92910.0,92899.0,0.00014759]
[1736467933860,0.215255,92913.0,92899.0,0.00014759]
[1736467934110,0.008,92914.0,92900.0,0.215285]
[1736467934310,0.008,92914.0,92901.0,0.215282]
[1736467934687,0.005,92914.0,92901.0,0.215282]
[1736467935087,0.008,92914.0,92901.0,0.20628198]
[1736467935564,0.21525,92915.0,92901.0,0.20628198]
[1736467935774,0.004,92913.0,92901.0,0.20628198]
[1736467936214,0.003,92914.0,92901.0,0.20628198]
[1736467936422,0.005,92914.0,92901.0,0.20628198]
[1736467936647,0.003,92915.0,92906.0,0.21527]
[1736467936858,0.003,92915.0,92910.0,0.215261]
[1736467937067,0.003,92915.0,92912.0,0.430514]
[1736467937269,0.003,92915.0,92902.0,0.0787]
[1736467937474,0.13371797,92912.0,92900.0,0.215285]
[1736467937675,0.34897697,92912.0,92900.0,0.215285]
[1736467937882,0.215247,92917.0,92904.0,0.215274]
[1736467938087,0.005,92913.0,92904.0,0.215274]
[1736467938287,0.005,92913.0,92904.0,0.430549]
[1736467938503,0.003,92914.0,92909.0,0.215264]
[1736467938699,0.13371797,92930.0,92913.0,0.215253]
[1736467938906,0.00014273,92928.0,92913.0,0.215253]
[1736467939113,0.15014273,92928.0,92917.0,0.215244]
[1736467939313,0.13171914,92929.0,92917.0,0.430488]
[1736467939516,0.215208,92934.0,92921.0,0.215234]
[1736467939722,0.215208,92934.0,92921.0,0.20623398]
[1736467939723,0.02843532,92933.0,92921.0,0.20623398]
[1736467940127,0.005,92928.0,92921.0,0.20623398]
[1736467940352,0.005,92928.0,92923.0,0.215231]
[1736467941253,0.009,92928.0,92923.0,0.430462]
[1736467941623,0.004,92928.0,92923.0,0.430462]
[1736467941746,0.0050851,92932.0,92923.0,0.215231]
[1736467941951,0.002,92928.0,92923.0,0.215231]
[1736467942147,0.002,92928.0,92925.0,0.215227]
[1736467942355,0.005,92928.0,92925.0,0.215227]
[1736467942573,0.002,92928.0,92925.0,0.215227]
[1736467942917,0.0050851,92932.0,92920.0,0.215238]
[1736467943121,0.0050851,92932.0,92924.0,0.215227]
[1736467943365,8.51e-05,92932.0,92924.0,0.215227]
[1736467944224,0.0030851,92932.0,92924.0,0.215227]
[1736467944433,0.0030851,92932.0,92920.0,0.215238]
[1736467944614,0.430426,92931.0,92914.0,0.215251]
[1736467944765,0.215224,92927.0,92914.0,0.20625098]
[1736467944952,0.215215,92930.0,92914.0,0.20625098]
[1736467945166,0.215222,92927.0,92914.0,0.20625098]
[1736467945374,0.215235,92922.0,92907.0,0.215268]
[1736467947222,0.216235,92922.0,92907.0,0.215268]
[1736467947634,0.217235,92922.0,92907.0,0.215268]
[1736467947987,0.24384203,92922.0,92907.0,0.215268]
[1736467948386,0.24584203,92922.0,92907.0,0.215268]